Cogmind - Beta 13 @@@ ROGUE MODE // 2024.04.11 @ 01:41:04 // AFD2018/Launchers Player: Nebula avali Result: Destroyed by S-10 Pest with Light Assault Rifle Performance ------------- Evolutions (1) 500 Regions Visited (2) 400 Robots Destroyed (3) 15 Value Destroyed (46) 46 Prototype IDs (0) 0 Alien Tech Used (0) 0 Bonus (200) 200 TOTAL SCORE: 1161 Bonus ------- Pacifist 200 Cogmind --------- Core Integrity 0/400 Matter 182/300 Energy 100/100 System Corruption 1% Temperature Cool (0) Movement Core (50) Location -9/Materials Parts ------- > --- POWER (1) -------- (None) > --- PROPULSION (2) --- (None) > --- UTILITY (4) ------ (None) > --- WEAPON (2) ------- (None) > --- INVENTORY (5) ---- EMP Blaster Rocket Launcher Rocket Launcher Rocket Launcher Rocket Launcher Peak State ------------ > --- POWER ------------ (None) > --- PROPULSION ------- (None) > --- UTILITY ---------- (None) > --- WEAPON ----------- EMP Blaster Mini Grenade Launcher > --- INVENTORY -------- EMP Blaster Rocket Launcher Rocket Launcher Rocket Launcher Rocket Launcher [Rating: 5] Favorites ----------- Power None Propulsion None Utility None Weapon Grenade Launcher Energy Gun EM Pulse Gun Launcher Grenade Launcher Build | -11 -10 -9 ------- Run | Yrd Mat Mat Slots Evolved 2 | . . 2 Power . | . . . Propulsion . | . . . Utility 2 | . . 2 Weapon . | . . . Parts Attached 4 | . 1 3 Power . | . . . Engine . | . . . Core . | . . . Reactor . | . . . Propulsion . | . . . Treads . | . . . Leg . | . . . Wheel . | . . . Hover . | . . . Flight . | . . . Utility . | . . . Device . | . . . Storage . | . . . Processor . | . . . Hackware . | . . . Protection . | . . . Artifact . | . . . Weapon 4 | . 1 3 Energy Gun 1 | . 1 . Energy Cannon . | . . . Ballistic Gun . | . . . Ballistic Cannon . | . . . Launcher 3 | . . 3 Special Weapon . | . . . Impact Weapon . | . . . Slashing Weapon . | . . . Piercing Weapon . | . . . Special Melee Weapon . | . . . Unidentified Prototypes . | . . . Parts Lost 2 | . . 2 Power . | . . . Propulsion . | . . . Utility . | . . . Weapon 2 | . . 2 Highest Loss Streak 2 | . . 2 To Critical Strikes . | . . . Average Slot Usage (%) 21 | . 28 18 Energy Gun 8 | . 8 8 Launcher 13 | . 20 10 Naked Turns 11 | . . 11 Heaviest Build 6 | 6 6 6 Greatest Support 3 | 3 3 3 Greatest Overweight (x) 1 | 1 1 1 Average Overweight (x) . | 1 1 . Largest Inventory Capacity 5 | . 5 5 Average Capacity 5 | . 5 5 Most Carried 5 | . 5 5 Average Carried 4 | . 4 4 Final Capacity 5 | 5 5 5 Final Carried 5 | 5 4 5 Class Distribution -------------------- 100% | Mutant Dominant Class ---------------- Mutant | -10/Materials Mutant | -9/Materials Resources | -11 -10 -9 ----------- Run | Yrd Mat Mat Matter Collected 50 | . . 50 Remotely . | . . . Salvage Created 50 | . . 50 Parts 5 | . . 5 Haulers Intercepted . | . . . Recyclers Shooed . | . . . Parts Field Recycled . | . . . Retrieved Matter . | . . . Parts Self-Destructed . | . . . Prevented . | . . . Kills | -11 -10 -9 ------- Run | Yrd Mat Mat Combat Hostiles Destroyed 2 | . . 2 Melee 1 | . . 1 Guns 1 | . . 1 Classes Destroyed 2 | . . 2 Operator 1 | . . 1 Swarmer 2 | . . 2 Best Kill Streak 2 | . . 2 Combat Bots Only 2 | . . 2 Max Kills in Single Turn 1 | . . 1 Gunslinging . | . . . Exploded . | . . . Melee 1 | . . 1 Uniques/NPCs Destroyed . | . . . Combat | -11 -10 -9 -------- Run | Yrd Mat Mat Hostile Shots Fired 70 | . 6 64 Missed 18 | . 1 17 Damage Taken 576 | . 55 521 Core 417 | . 11 406 Absorbed by Shields . | . . . Core Remaining (%) 97 | 100 95 . Volleys Fired 3 | . . 3 Largest 2 | . . 2 Hottest 70 | . . 70 Shots Fired 4 | . . 4 Gun 3 | . . 3 Cannon . | . . . Launcher 1 | . . 1 Special . | . . . Kinetic . | . . . Thermal . | . . . Explosive 1 | . . 1 Electromagnetic 3 | . . 3 Robot Hit Streak 1 | . . 1 Robot Miss Streak 1 | . . 1 Penetration Max . | . . . Secondary Targets . | . . . Shots Hit Robots 1 | . . 1 Core Hits 5 | . . 5 Critical Kills . | . . . Critical Parts Destroyed . | . . . Critical Strikes . | . . . Melee Attacks . | . . . Impact . | . . . Slashing . | . . . Piercing . | . . . Sneak Attacks . | . . . Combat Hostiles . | . . . Follow-up Attacks . | . . . Damage Inflicted 87 | . 2 85 Guns 10 | . . 10 Cannons . | . . . Explosions 31 | . . 31 Melee . | . . . Ramming 46 | . 2 44 Kinetic . | . . . Thermal . | . . . Explosive 31 | . . 31 Electromagnetic 10 | . . 10 Impact . | . . . Slashing . | . . . Piercing . | . . . Highest Corruption 1 | . . 1 Average Corruption 1 | . . 1 Corruption Purged . | . . . Corruption Blocked . | . . . Effects 2 | . . 2 Message Errors 1 | . . 1 Matter Fused 1 | . . 1 Overload Shots . | . . . Overflow Damage 5 | . . 5 Projectiles . | . . . Explosions 5 | . . 5 Melee . | . . . Knockbacks . | . . . Impact . | . . . Kinetic . | . . . Secondary . | . . . Self-Inflicted Damage 21 | . 1 20 Shots . | . . . Rammed 12 | . 1 11 Targets Rammed 12 | . 1 11 Kicked . | . . . Crushed . | . . . Highest Temperature 1 | . . 1 Average Temperature 1 | . . 1 Received Heat Transfer 126 | . 30 96 Siege Activations . | . . . Robots Corrupted . | . . . Combat Hostiles . | . . . Parts Fried . | . . . Impact Corruptions . | . . . Robots Melted . | . . . Combat Hostiles . | . . . Parts Melted . | . . . Heat Transferred . | . . . Parts Sabotaged . | . . . Parts Stolen . | . . . Parts Stripped . | . . . Power Chain Reactions . | . . . Alert | -11 -10 -9 ------- Run | Yrd Mat Mat Peak Influence 230 | . . 230 Initial . | . . . Average 58 | . . 84 Maximum Alert Level 1 | . . 1 Low Security (%) 90 | . 100 86 Level 1 9 | . . 13 Level 2 . | . . . Level 3 . | . . . Level 4 . | . . . Level 5 . | . . . High Security . | . . . Max Security . | . . . Squads Dispatched 2 | . 1 1 Investigation 1 | . 1 . Extermination . | . . . Reinforcement 1 | . . 1 Assault . | . . . Garrison . | . . . Intercept . | . . . Searches Triggered . | . . . Construction Impeded . | . . . Haulers Reinforced . | . . . Active Scanning Responses . | . . . Cargo Convoy Interrupts . | . . . Stealth | -11 -10 -9 --------- Run | Yrd Mat Mat Distress Signals . | . . . Communications Jammed . | . . . Distress Signals . | . . . Times Spotted 21 | . 3 18 Peak Tracking Total 14 | . 6 14 Tactical Retreats . | . . . Traps | -11 -10 -9 ------- Run | Yrd Mat Mat Traps Triggered 3 | . 1 2 Indirectly . | . . . Trap Hack Attempts . | . . . Triggered . | . . . Disarmed . | . . . Reprogrammed 4 | . . 4 Reused . | . . . Traps Extracted . | . . . Installed . | . . . Triggered . | . . . Machines | -11 -10 -9 ---------- Run | Yrd Mat Mat Machines Disabled 1 | . . 1 Max in Single Turn 1 | . . 1 Machines Repaired . | . . . Machines Dismantled . | . . . Machines Sabotaged . | . . . Overloaded Fab Kills . | . . . Hacking | -11 -10 -9 --------- Run | Yrd Mat Mat Machines Accessed 3 | . 1 2 Terminals 2 | . 1 1 Fabricators . | . . . Repair Stations . | . . . Recycling Units 1 | . . 1 Scanalyzers . | . . . Garrison Access . | . . . Total Hacks 16 | . 2 14 Successful 10 | . . 10 Failed 6 | . 2 4 Catastrophic 3 | . 1 2 Database Lockouts . | . . . Manual 8 | . 2 6 Terminals 7 | . 2 5 Fabricators . | . . . Repair Stations . | . . . Recycling Units 9 | . . 9 Scanalyzers . | . . . Garrison Access . | . . . Terminal Hacks 3 | . . 3 Level Access Points 1 | . . 1 Reprogram Traps 1 | . . 1 Zone Layout 1 | . . 1 Fabricator Hacks . | . . . Repair Station Hacks . | . . . Recycling Unit Hacks 7 | . . 7 Recycle Component 2 | . . 2 Process 1 | . . 1 Report Inventory 1 | . . 1 Retrieve Matter 2 | . . 2 Retrieve Components 1 | . . 1 Scanalyzer . | . . . Garrison Access Hacks . | . . . Unauthorized Hacks . | . . . Terminals . | . . . Fabricators . | . . . Repair Stations . | . . . Recycling Units . | . . . Scanalyzers . | . . . Garrison Access . | . . . Data Cores Recovered . | . . . Used . | . . . Hacking Detections 3 | . 1 2 Full Trace Events . | . . . Feedback Events . | . . . Feedback Blocked . | . . . Robot Schematics Acquired . | . . . Robots Built . | . . . Authchips . | . . . Time . | . . . Total Robot Build Rating . | . . . Part Schematics Acquired . | . . . Parts Built . | . . . Authchips . | . . . Time . | . . . Total Part Build Rating . | . . . Parts Repaired . | . . . Time . | . . . Parts Recycled 2 | . . 2 Recycled Matter 43 | . . 43 Retrieved Matter 43 | . . 43 Retrieved Components . | . . . Parts Scanalyzed . | . . . Part Schematics Acquired . | . . . Parts Damaged . | . . . Bothacking | -11 -10 -9 ------------ Run | Yrd Mat Mat Used RIF Installer . | . . . Robots Hacked . | . . . Non-combat . | . . . Combat . | . . . Robot Hacks Applied . | . . . Relay Couplers Released . | . . . Fabnet Peak Effective % . | . . . Robots Rewired . | . . . Allies Hacked . | . . . Hacks Repelled . | . . . Allies | -11 -10 -9 -------- Run | Yrd Mat Mat Total Allies . | . . . Largest Group . | . . . Highest-Rated Group . | . . . Highest-Rated Ally . | . . . Total Orders . | . . . Ally Attacks . | . . . Total Damage . | . . . Kills . | . . . Allies Corrupted . | . . . Allies Melted . | . . . Intel | -11 -10 -9 ------- Run | Yrd Mat Mat Robot Analysis Total . | . . . Derelict Logs Recovered . | . . . Drone Launches . | . . . Drone Recoveries . | . . . Exploration | -11 -10 -9 ------------- Run | Yrd Mat Mat Turns Passed 234 | . 71 163 Spaces Moved 238 | 1 67 170 Core 238 | 1 67 170 Treads . | . . . Legs . | . . . Wheels . | . . . Hover . | . . . Flight . | . . . Fastest Speed 50 | 100 100 50 Average Speed 81 | 100 100 73 Slowest Speed 100 | 100 100 100 Overloaded Moves . | . . . Propulsion Burnouts . | . . . Robots Hopped . | . . . Cave-ins Triggered . | . . . Exploration Rate (%) 13 | 2 15 22 Regions Visited 2 Branch Regions . Pre-discovered Areas . | . . . Known Exits Taken . | . . . Unknown Exits Taken 2 | 1 1 . Scrap Searched . | . . . Spaces Dug . | . . . Terrain Destroyed 5 | . . 5 Melee . | . . . Projectile . | . . . AOE 5 | . . 5 Terrain Rammed . | . . . Walls Destroyed . | . . . Machines Disabled . | . . . Actions | -11 -10 -9 --------- Run | Yrd Mat Mat Total 278 | . 71 207 Wait 4 | . . 4 Move 237 | . 67 170 Hop . | . . . Pick Up 9 | . 1 8 Fast Attach 2 | . . 2 Attach 2 | . 1 1 Detach 1 | . . 1 Swap . | . . . Drop 9 | . 2 7 Fire 3 | . . 3 Melee . | . . . Ram 11 | . . 11 Kick . | . . . Crush . | . . . Escape Stasis . | . . . Rewire . | . . . Trap . | . . . Miscellaneous . | . . . Route ------- -11/Scrapyard -10/Materials -9/Materials (discovered 3 exits: Mat x3) History --------- Turn | Location | Event 1 | -11/Scrapyard | Discovered new exit (range 0) 1 | -11/Scrapyard | Entered Materials 24 | -10/Materials | Discovered new exit (range 15) 72 | -10/Materials | Entered another Materials area 72 | -9/Materials | Evolved 2 slots: Utility x2 185 | -9/Materials | Identified exit to Materials 225 | -9/Materials | Core integrity fell below 50% 230 | -9/Materials | Core integrity fell below 20% 235 | -9/Materials | Destroyed by S-10 Pest with Light Assault Rifle Last Messages --------------- 00198_ K-01 Serf destroyed. 00199_ Acquired 18 matter. 00203_ Acquired EMP Blaster. 00206_ Dropped EMP Blaster. 00207_ Slammed into S-10 Pest. 00213_ S-10 Pest destroyed. 00214_ Acquired 20 matter. 00214_ Slammed into W-16 Scout. 00214_ Mni. Grenade Launcher broken. 00214_ Destabilizing: Short circuit. 00215_ Slammed into W-16 Scout. 00222_ GJMQRCUIYVJHTD:TRHLI8ZOFEJWX8DKX 00223_ K-01 Serf collects debris. 00224_ Broken Mni. Grenade Launcher destroyed. 00226_ Critical hit (Burn: +37). 00229_ K-01 Serf cleans the Nuclear Reactor. 00230_ S-10 Pest destroyed. 00232_ Slammed into S-10 Pest. 00233_ K-01 Serf collects debris. 00235_ Slammed into W-16 Scout. Map ----- +----------------------------------------------------+ | ?????????????????????????????????????????????????? | | ?????????????????????????????????????????????????? | | ?????????????????????????????????????????????????? | | ???????????????########??????????????????????????? | | ???????????????# ??????????????????????????? | | ???????????????# #?????????????????????????? | | ???????????????# #?????????????????????????? | | ???????????????# #?????????????????????????? | | ???????? ??????# #?????????????????????????? | | ????????? ### #?????????????????????????? | | ?????????? #?????????????????????????? | | ??????????? #?????????????????????????? | | ?????????????""" """ #?????????????????????????? | | ??????????"??""" """ #????????????